[Event "Olomouc Chess Summer-IM 2022"]
[Site "Olomouc"]
[Date "2022.08.19"]
[Round "8.15"]
[White "Mannion, Stephen R"]
[Black "Biolek, Richard"]
[Result "1/2-1/2"]
[ECO "B69"]
[WhiteElo "2232"]
[BlackElo "2402"]
[Annotator "TA"]
[PlyCount "117"]
[EventDate "2022.08.10"]
[EventCountry "CZE"]
[SourceTitle "playchess.com"]
[Source "ChessBase"]
[SourceQuality "1"]
[TimeControl "40/5400+30:1800+30"]

{[%evp 22,117,45,25,37,41,34,22,27,26,33,7,0,0,0,8,12,0,8,22,20,0,36,39,39,0,16,5,16,18,18,18,17,15,27,9,28,35,31,0,31,0,31,18,23,17,22,14,14,18,37,-83,-91,-93,0,0,0,-145,-143,-143,-153,-152,-144,-141,-147,-144,-145,-135,-140,-116,-122,-182,-187,-185,-178,-145,-33,-29,-20,-20,0,0,0,0,0,0,10,10,9,9,9,0,0,0,0,0,0,0]} 1. e4 {[%emt 0:00:03]} c5 {[%emt 0:00:04]} 2. Nf3 {[%emt 0:00:09]} d6 {[%emt 0:00:06]} 3. d4 {[%emt 0:00:07]} cxd4 {[%emt 0:00:04]} 4. Nxd4 {[%emt 0:00:05]} Nf6 {[%emt 0:00:04]} 5. Nc3 {[%emt 0:00:08]} Nc6 {[%emt 0:00:05]} 6. Bg5 {[%emt 0:00:16]} e6 {[%emt 0:00:08]} 7. Qd2 {[%emt 0:00:22]} a6 {[%emt 0:00:07]} 8. O-O-O {[%emt 0:01:42]} Bd7 {[%emt 0:00:09]} 9. f4 {[%emt 0:01:12]} Be7 {[%emt 0:03:02]} 10. Nf3 {[%emt 0:00:35]} b5 {[%emt 0:06:33]} 11. Bxf6 {[%emt 0:17:10]} gxf6 {[%emt 0:00:21]} 12. Bd3 {[%emt 0:00:10]} Qb6 {[%emt 0:02:33] B69: Sicilian: Richter-Rauzer: 7...a6 8 0-0-0 Bd7 9 f4 Be7 10 Nf3 b5 11 Bxf6.} 13. Rhe1 {[%emt 0:10:18]} O-O-O {[%emt 0:03:38]} 14. Bf1 {[%emt 0:14:06]} Kb8 {[%emt 0:05:11]} 15. Kb1 {[%emt 0:02:23]} Rc8 {[#]} 16. Nd4 $146 {[%emt 0:01:59]} ({Predecessor:} 16. Ne2 Na5 17. Ned4 Nc4 18. Bxc4 bxc4 19. Qe3 Rc5 20. e5 fxe5 21. fxe5 d5 22. Ng5 {½-½ (41) Chigaev,M (2520)-Lobanov,S (2271) St Petersburg 2014}) 16... Nxd4 {[%emt 0:37:04]} 17. Qxd4 {[%emt 0:00:07]} Qxd4 {[%emt 0:00:29]} (17... Qc5 {looks sharper.} 18. Qd2 b4 19. Ne2 a5) 18. Rxd4 {[%emt 0:00:03]} Ka7 {[%emt 0:01:19]} (18... Kc7 {seems wilder.} 19. a4 bxa4 20. Nxa4 Rb8) 19. Rd3 {[%emt 0:15:51]} Rc7 {[%emt 0:07:05]} 20. a3 {[%emt 0:03:29]} Kb6 {[%emt 0:04:32]} 21. Red1 {[%emt 0:02:25][%cal Of4f5]} Bc6 {[%emt 0:00:30]} 22. Rh3 {[%emt 0:04:01]} h5 {[%emt 0:07:55]} 23. g4 {[%emt 0:04:35]} h4 {[%emt 0:00:34]} 24. f5 {[%emt 0:01:37]} Bb7 {[%emt 0:00:55]} (24... Ba8 {feels hotter.} 25. Rd4 Kc5 26. Rb4 Kb6) 25. Be2 {[%emt 0:01:35]} (25. Rd4 {is interesting.} Kc5 26. Rb4 Kb6 27. Rb3) 25... Rc5 {[%emt 0:01:29]} 26. Rd4 {[%emt 0:03:17]} Re5 {[%emt 0:01:37]} 27. b4 {[%emt 0:04:00]} Bc6 {[%emt 0:03:45]} 28. Kb2 {[%emt 0:00:46]} Kb7 {[%emt 0:02:48][%cal Bb6b7,Bb7c7,Bc7d7,Bd7e8,Be8f8][%mdl 32]} 29. Bf3 {[%emt 0:01:16]} Kc7 {[%emt 0:00:28]} 30. Be2 {[%emt 0:02:21][%cal Oa3a4]} Kd7 {[%emt 0:00:01]} 31. Rhd3 {[%emt 0:02:07]} (31. a4 $5) 31... Bf8 {[%emt 0:07:56]} 32. Bf3 {[%emt 0:00:15]} h3 {[%emt 0:01:39]} 33. Ne2 {[%emt 0:01:33]} exf5 {[%emt 0:02:04]} 34. gxf5 {[%emt 0:00:07]} Rh4 {[%emt 0:00:01][%cal Rc6e4]} 35. Nc3 {[%emt 0:01:30]} Ke8 {[%emt 0:01:26]} 36. Rxd6 {[%emt 0:03:33]} (36. Kb3 $14 {keeps the upper hand.}) 36... Bxd6 $17 {[%emt 0:00:24]} 37. Rxd6 {[%emt 0:00:01]} Rf4 {[%emt 0:00:43]} (37... Bb7 $1 $17) 38. Rxc6 $11 {[%emt 0:00:40]} Rxf3 {[%emt 0:00:02]} 39. Rxa6 {[%emt 0:01:32][%mdl 4096] Endgame KRR-KRN} (39. Nd5 $11 {remains equal.}) 39... Kf8 $1 $17 {[%emt 0:00:36]} (39... Rf2 40. Nd5 Rd2 41. Nxf6+ Ke7 42. Kc3 $16 (42. Nd5+ Kf8 $11)) 40. Rxf6 {[%emt 0:00:19]} Kg7 {[%emt 0:00:13] Against Rh6} 41. Rd6 {[%emt 0:04:45]} Rf2 {[%emt 0:02:48]} 42. Rd3 {[%emt 0:00:03]} Rxh2 {[%emt 0:00:05]} 43. Rg3+ {[%emt 0:11:32]} Kf8 $1 {[%emt 0:00:22] Hoping for ...Rh1.} 44. a4 {[%emt 0:02:20]} bxa4 {[%emt 0:00:31]} 45. b5 {[%emt 0:00:06]} Ke7 {[%emt 0:17:10] aiming for ...Kd6.} 46. b6 {[%emt 0:01:00]} (46. Nd5+ $17 Kd6 47. Rd3) 46... Kd6 $19 {[%emt 0:00:12] Threatens to win with ...Ra5.} 47. Nxa4 {[%emt 0:07:41] [#]} Rb5+ $1 {[%emt 0:01:07]} (47... Rxe4 48. Rd3+ Kc6 49. Rc3+ Kd6 50. Rd3+ Kc6 51. Rc3+ Kd6 52. Rd3+ $11) 48. Kc3 {[%emt 0:01:33]} Rh1 {[%emt 0:00:52]} (48... Kc6 $17 49. Rg7 Re2) 49. Nb2 $1 $15 {[%emt 0:02:00]} h2 {[%emt 0:10:22]} 50. Rh3 $1 {[%emt 0:00:21] The position is equal.} Kc5 {[%emt 0:02:10]} ({Don't take} 50... Rxb6 51. Nc4+ Kc7 52. Nxb6 Kxb6 53. Kc4 $14) 51. Rh6 {[%emt 0:00:43][%cal Rb2d3]} f6 $1 {[%emt 0:00:55]} 52. Nd3+ {[%emt 0:01:24]} ({Don't go for} 52. Rxf6 $2 {[#]} Rxb2 $1 {[%mdl 512]} 53. Kxb2 Rd1 $19) 52... Kxb6 {[%emt 0:00:10]} 53. Rxf6+ {[%emt 0:00:06]} Kc7 {[%emt 0:00:48]} (53... Ka7 $5 54. Rh6 Rb6 $11) 54. Rh6 {[%emt 0:00:08]} Rb6 {[%emt 0:00:14]} 55. Rh7+ {[%emt 0:00:08]} Kd8 {[%emt 0:00:09]} 56. e5 {[%emt 0:02:08]} Rf1 {[%emt 0:00:32]} 57. Rxh2 {[%emt 0:00:14] Black must now prevent f6.} Rxf5 {[%emt 0:00:03]} 58. Kd4 {[%emt 0:00:33]} Rf1 {[%emt 0:00:48]} 59. Rh8+ {[%emt 0:01:58] Black had all chances to win.  Weighted Error Value: White=0.16 (very precise) /Black=0.12 (very precise)} 1/2-1/2

[Event "Olomouc Chess Summer-IM 2022"]
[Site "Olomouc"]
[Date "2022.08.20"]
[Round "9.6"]
[White "Gimenez Menchon, Cesar"]
[Black "Jurek, Josef"]
[Result "1-0"]
[ECO "C00"]
[WhiteElo "2207"]
[BlackElo "2200"]
[Annotator "TA"]
[PlyCount "71"]
[EventDate "2022.08.10"]
[EventCountry "CZE"]
[SourceTitle "playchess.com"]
[Source "ChessBase"]
[SourceQuality "1"]
[TimeControl "40/5400+30:1800+30"]

{[%evp 10,71,0,-16,0,0,3,0,3,0,3,3,7,2,5,0,31,22,55,22,92,93,87,80,85,87,90,61,85,33,34,32,33,45,76,86,78,80,72,87,80,77,126,113,143,80,122,89,68,8,65,61,73,70,70,51,88,88,402,374,480,480,415,386]} 1. e4 {[%emt 0:06:47]} e6 {[%emt 0:00:24]} 2. d4 {[%emt 0:00:16]} d5 {[%emt 0:00:10]} 3. Bd3 {[%emt 0:00:13][%cal Bf1d3,Bd3e4,Be4f3][%mdl 32]} dxe4 {[%emt 0:02:33]} 4. Bxe4 {[%emt 0:00:06]} Nf6 {[%emt 0:00:30]} 5. Bf3 {[%emt 0:00:05]} c5 {[%emt 0:01:07]} 6. Ne2 {[%emt 0:00:06]} Nc6 {[%emt 0:00:52][%cal Rc5d4] C01: French: Exchange Variation.} 7. Be3 {[%emt 0:00:06]} cxd4 {[%emt 0:05:13]} 8. Nxd4 {[%emt 0:00:07]} Ne5 {[%emt 0:00:45] The position is equal.} 9. Nc3 {[%emt 0:00:18]} a6 {[%emt 0:03:52]} 10. Qe2 {[%emt 0:02:11]} Nxf3+ {[%emt 0:02:07]} 11. Qxf3 {[%emt 0:00:11]} e5 {[%emt 0:03:39]} 12. Nb3 {[%emt 0:28:08]} Qc7 {[%emt 0:08:57] [#]} 13. O-O-O $146 {[%emt 0:10:09]} (13. Bg5 $5 {[%cal Rg5f6]} Bg4 14. Qg3 $11) ({Predecessor:} 13. Bg5 Bg4 14. Qg3 Be6 15. O-O-O Rc8 16. Bxf6 gxf6 17. Rhe1 h5 18. Qh4 Bg7 19. Kb1 {½-½ (39) Rodriguez Perez,R (2240)-Mas Recorda,P (2050) ICCF email 2021}) 13... Bb4 {[%emt 0:06:20]} 14. Bg5 {[%emt 0:06:16]} (14. Bh6 $5 {[%cal Rh6g7]} Bf8 15. Bg5 $16) 14... Bxc3 {[%emt 0:13:24]} (14... Bg4 $11 {keeps the balance.} 15. Nd5 O-O-O 16. Qxg4+ Nxg4 17. Nxc7 Rxd1+ 18. Rxd1 Kxc7) 15. Bxf6 $16 {[%emt 0:00:43]} gxf6 {[%emt 0:01:08]} 16. Qxf6 {[%emt 0:01:50]} ({Much weaker is} 16. bxc3 $6 Qe7 $11) ({Don't play} 16. Qxc3 Qxc3 17. bxc3 Be6 $15) 16... Rg8 {[%emt 0:01:06] Threatens to win with ...Bb4.} 17. bxc3 {[%emt 0:01:39][%cal Ob3c5] Nc5! is the strong threat.} Qe7 {[%emt 0:01:34] Against Nc5} 18. Qb6 {[%emt 0:08:24] Black must now prevent Rhe1.} Rxg2 {[%emt 0:05:05] [#]} 19. Rhg1 {[%emt 0:05:50]} (19. Rhe1 $1 $16 {[%cal Re1e5]}) 19... Rg6 $1 $14 {[%emt 0:04:39]} (19... Qg5+ $2 20. f4 Rxg1 21. fxg5 $18) 20. Qa5 $40 {[%emt 0:06:48][%mdl 128] Inhibits Qa3+. White is up to no good.} Bd7 {[%emt 0:16:00]} 21. Rge1 {[%emt 0:05:01]} Bb5 {[%emt 0:05:47]} 22. Rd5 {[%emt 0:00:43][%cal Bd1d5,Bd5e5,Be5e7,Be7c7][%mdl 32]} b6 {[%emt 0:10:18]} (22... Qg5+ $2 23. Kb2 Re6 24. Rxb5 $18) 23. Rdxe5 {[%emt 0:01:18]} bxa5 {[%emt 0:00:02]} 24. Rxe7+ {[%emt 0:00:09]} Kf8 {[%emt 0:00:14]} 25. Rc7 {[%emt 0:05:56] Against Rc8} a4 {[%emt 0:02:28]} ({Better is} 25... Rg2) 26. Nd4 $16 {[%emt 0:00:44]} Rd8 {[%emt 0:01:05]} 27. f4 {[%emt 0:01:21]} (27. Re4 $142) 27... Rh6 {[%emt 0:01:54]} 28. Ree7 {[%emt 0:01:30]} Be8 {[%emt 0:01:35]} 29. Nf3 {[%emt 0:01:48] 0x0.001e3cb85922dp-1022s more active pieces.} (29. Re2 $14) 29... Rf6 {[%emt 0:00:59]} ({Black should try} 29... Rh3 $11 30. Re3 a5) 30. Re4 $14 {[%emt 0:01:23]} Bc6 {[%emt 0:00:52]} 31. Rd4 {[%emt 0:00:54]} Rxd4 {[%emt 0:00:25]} 32. Nxd4 {[%emt 0:00:10]} Be4 {[%emt 0:00:46]} 33. Kd2 {[%emt 0:02:33]} Rxf4 $2 {[%emt 0:00:16][%mdl 8192]} (33... Rh6 $16) 34. Ke3 $18 {[%emt 0:00:06]} Rh4 {[%emt 0:00:11]} 35. Rc4 {[%emt 0:00:09]} f5 {[%emt 0:01:05] [#]} 36. Nxf5 $1 {[%emt 0:00:24][%mdl 512] Weighted Error Value: White=0.12 (very precise) /Black=0.37} 1-0

[Event "Olomouc Chess Summer-IM 2022"]
[Site "Olomouc"]
[Date "2022.08.20"]
[Round "9.7"]
[White "Nytra, Ondrej"]
[Black "Jasny, Stanislav"]
[Result "1/2-1/2"]
[ECO "C91"]
[WhiteElo "2214"]
[BlackElo "2261"]
[Annotator "TA"]
[PlyCount "43"]
[EventDate "2022.08.10"]
[EventCountry "CZE"]
[SourceTitle "playchess.com"]
[Source "ChessBase"]
[SourceQuality "1"]
[TimeControl "40/5400+30:1800+30"]

{[%evp 18,20,14,8,19]} 1. e4 {[%emt 0:00:09]} e5 {[%emt 0:00:06]} 2. Nf3 {[%emt 0:00:04]} Nc6 {[%emt 0:00:05]} 3. Bb5 {[%emt 0:00:04]} a6 {[%emt 0:00:06]} 4. Ba4 {[%emt 0:00:05]} Nf6 {[%emt 0:00:06]} 5. O-O {[%emt 0:00:06]} Be7 {[%emt 0:00:06]} 6. Re1 {[%emt 0:00:08]} b5 {[%emt 0:00:10]} 7. Bb3 {[%emt 0:00:03]} d6 {[%emt 0:00:07]} 8. c3 {[%emt 0:00:04]} O-O {[%emt 0:00:08]} 9. d4 {[%emt 0:00:03]} Bg4 {[%emt 0:00:46]} 10. Be3 {[%emt 0:00:09]} exd4 {[%emt 0:00:15] [#] An uneventful encounter. C91: Closed Ruy Lopez: 7...d6 8 c3 0-0 9 d4.} {Predecessor:} 11. cxd4 $146 d5 12. e5 Ne4 13. h3 Bh5 14. Nbd2 Nxd2 15. Qxd2 Bb4 16. Qc2 Na5 17. Rec1 Nc4 18. Ne1 f6 19. Nd3 Bg6 20. Qe2 Bxd3 21. Qxd3 fxe5 22. dxe5 {½-½ (60) Jones,G (2672)-Piorun,K (2640) Germany 2022} 1/2-1/2

[Event "Olomouc Chess Summer-IM 2022"]
[Site "Olomouc"]
[Date "2022.08.20"]
[Round "9.8"]
[White "Kusa, Jakub"]
[Black "Kukelko, Alexey"]
[Result "1/2-1/2"]
[ECO "A40"]
[WhiteElo "2353"]
[BlackElo "2260"]
[Annotator "TA"]
[PlyCount "61"]
[EventDate "2022.08.10"]
[EventCountry "CZE"]
[SourceTitle "playchess.com"]
[Source "ChessBase"]
[SourceQuality "1"]
[TimeControl "40/5400+30:1800+30"]

{[%evp 21,61,0,0,0,0,0,0,0,0,0,7,0,4,0,0,0,0,0,6,0,31,23,50,37,44,22,31,23,5,14,20,15,15,12,19,14,24,0,30,0,25,0]} 1. d4 {[%emt 0:00:03]} Nf6 {[%emt 0:09:28]} 2. c4 {[%emt 0:00:11]} e6 {[%emt 0:00:06]} 3. g3 {[%emt 0:00:12]} d5 {[%emt 0:00:48]} 4. Nf3 {[%emt 0:00:20]} Bb4+ {[%emt 0:01:25]} 5. Bd2 {[%emt 0:01:28]} Be7 {[%emt 0:00:14]} 6. Bg2 {[%emt 0:00:59]} O-O {[%emt 0:00:31]} 7. O-O {[%emt 0:00:22]} c6 {[%emt 0:00:28]} 8. Qc2 {[%emt 0:02:40]} b6 {[%emt 0:01:41]} 9. Rd1 {[%emt 0:01:36]} Bb7 {[%emt 0:01:08]} 10. Bf4 {[%emt 0:01:30]} Nbd7 {[%emt 0:00:46]} 11. Nc3 {[%emt 0:01:10]} dxc4 {[%emt 0:03:19]} 12. Nd2 {[%emt 0:00:52] E08: Closed Catalan: Main Line: 7 Qc2.} Nd5 {[%emt 0:02:02]} 13. Nxc4 {[%emt 0:00:47]} Nxf4 {[%emt 0:00:04]} 14. gxf4 {[%emt 0:00:10] The position is equal.} Qc7 {[%emt 0:01:47]} 15. e3 {[%emt 0:00:08]} Rac8 {[%emt 0:03:27]} 16. Rab1 {[%emt 0:04:00]} Nf6 {[%emt 0:00:27]} 17. b4 {[%emt 0:03:59]} Nd5 {[%emt 0:02:43]} 18. a3 {[%emt 0:04:10]} Rfd8 {[%emt 0:00:33]} 19. Rdc1 {[%emt 0:03:16]} Qb8 {[%emt 0:02:28] [#]} 20. Ne5 $146 {[%emt 0:06:13]} ({Predecessor:} 20. Ne4 c5 21. dxc5 bxc5 22. b5 Nf6 23. Na5 Bxe4 24. Bxe4 Nxe4 25. Nc6 Qb7 26. Qxe4 {1-0 (34) Gulko,B-Begovac,J Sombor 1974}) 20... Bd6 {[%emt 0:03:04]} 21. Ne4 {[%emt 0:06:37] [#] And now Ng5 would win. Pair of Knights!} h6 {[%emt 0:00:32] Against Ng5} 22. Nxd6 {[%emt 0:06:58]} Qxd6 {[%emt 0:00:48]} 23. Qa4 {[%emt 0:04:23]} Rc7 {[%emt 0:03:02]} 24. Rb2 {[%emt 0:04:05]} ({Don't blunder} 24. Qxa7 $2 Ra8 25. Qxa8+ (25. Nc4 $2 Qd8 $19) 25... Bxa8 $19) 24... f6 {[%emt 0:02:46]} 25. Nc4 {[%emt 0:02:55]} Qd7 {[%emt 0:05:32] [#] ...b5 is the strong threat.} 26. Qd1 {[%emt 0:03:46]} (26. Qxa7 $2 Ra8 27. Nxb6 Rxa7 $17) 26... Ba6 {[%emt 0:11:05]} 27. Rbc2 {[%emt 0:05:26]} Rdc8 {[%emt 0:11:37]} 28. Nb2 {[%emt 0:02:06]} Qd6 {[%emt 0:01:37]} 29. Nc4 {[%emt 0:04:51]} Qd7 {[%emt 0:00:07]} 30. Nb2 {[%emt 0:03:43]} Qd6 {[%emt 0:00:06]} 31. Nc4 {[%emt 0:00:51] Weighted Error Value: White=0.07 (flawless) /Black=0.05 (flawless)} 1/2-1/2

[Event "Olomouc Chess Summer-IM 2022"]
[Site "Olomouc"]
[Date "2022.08.20"]
[Round "9.9"]
[White "Nagy, Ladislav"]
[Black "Stinka, Jakub"]
[Result "1/2-1/2"]
[ECO "B53"]
[WhiteElo "2209"]
[BlackElo "2335"]
[Annotator "TA"]
[PlyCount "60"]
[EventDate "2022.08.10"]
[EventCountry "CZE"]
[SourceTitle "playchess.com"]
[Source "ChessBase"]
[SourceQuality "1"]
[TimeControl "40/5400+30:1800+30"]

{[%evp 19,60,-4,0,-26,-26,-27,-23,-28,-26,-18,14,9,5,7,5,5,7,5,6,8,4,0,0,0,0,-8,-1,-8,0,0,0,0,43,55,41,42,51,44,59,41,59,11,16]} 1. e4 c5 2. Nf3 d6 3. d4 cxd4 4. Qxd4 Nc6 5. Bb5 Bd7 6. Bxc6 Bxc6 7. Nc3 Nf6 8. Bg5 e6 9. O-O-O Be7 10. Qd3 $1 {[%mdl 4] now scores much better than the old 10.Rhe1.} Qa5 11. Bd2 {B53: Sicilian: 2...d6: Lines with Qxd4.} d5 12. exd5 ({Not} 12. Nxd5 $2 Qxa2 13. Nxf6+ (13. Nc7+ $2 Kf8 $19) 13... gxf6 $19) 12... Nxd5 13. Kb1 {Black has an edge.} Rd8 14. Nd4 {[#]} Bb4 $146 (14... Qb6 {feels hotter.} 15. Nxc6 bxc6 16. Be3 Nxe3 17. Qxe3 Qxe3 18. fxe3 Bg5) ({Predecessor:} 14... Qb6 15. Nxc6 bxc6 16. Nxd5 Rxd5 17. Qg3 Bf6 18. Bc3 Bxc3 19. Qxc3 O-O 20. Qe3 Qc7 {½-½ (20) Trofimov,V (2400)-Nizky,R (2425) ICCF email 2014}) 15. Nxc6 (15. Nxd5 {looks sharper.} Bxd5 16. c4 Bxg2 17. Bxb4 Qxb4 18. Rhg1) 15... bxc6 16. Nxd5 cxd5 17. Bxb4 Qxb4 18. Qd4 Qxd4 19. Rxd4 $11 {[%mdl 4096] Endgame KRR-KRR} Ke7 20. c4 dxc4 21. Rxc4 Rd2 22. Rc2 Rhd8 23. Rhc1 g5 24. Rxd2 Rxd2 {KR-KR} 25. Rc7+ Kf6 26. Rxa7 {Black must now prevent b4.} Rxf2 27. b4 $1 e5 $1 28. b5 {[#] aiming for b6.} e4 {Threatens to win with ...e3.} (28... Rxg2 $2 29. b6 Rg4 30. a3 Rg1+ 31. Kc2 Rg2+ 32. Kc3 $18) 29. Ra3 {Hoping for b6.} Ke6 (29... Rxg2 30. b6 Rg1+ 31. Kc2 $18) 30. b6 (30. Rc3 $14 Rf1+ 31. Kb2 Rf2+ 32. Kb3) 30... Kd7 {Weighted Error Value: White=0.05 (flawless) /Black=0.06 (flawless)} 1/2-1/2

[Event "Olomouc Chess Summer-IM 2022"]
[Site "Olomouc"]
[Date "2022.08.20"]
[Round "9.10"]
[White "Lalic, Bogdan"]
[Black "Poschadel, Andreas Gregor"]
[Result "1-0"]
[ECO "E20"]
[WhiteElo "2412"]
[BlackElo "2101"]
[Annotator "TA"]
[PlyCount "81"]
[EventDate "2022.08.10"]
[EventCountry "CZE"]
[SourceTitle "playchess.com"]
[Source "ChessBase"]
[SourceQuality "1"]
[TimeControl "40/5400+30:1800+30"]

{[%evp 10,81,0,0,0,0,0,0,0,8,7,7,38,35,46,47,152,125,160,151,151,144,227,222,233,224,440,439,452,351,331,333,328,356,356,360,377,88,483,471,437,372,432,413,399,414,418,411,413,429,569,566,530,514,615,592,575,564,704,704,690,675,801,790,836,755,1024,967,973,953,29988,29989,29989,29990]} 1. d4 {[%emt 0:00:03]} Nf6 {[%emt 0:00:09]} 2. c4 {[%emt 0:00:07]} e6 {[%emt 0:00:06]} 3. Nc3 {[%emt 0:00:06]} Bb4 {[%emt 0:00:08]} 4. f3 d5 5. a3 {[%emt 0:00:26]} Be7 {[%emt 0:03:09]} 6. e4 {[%emt 0:00:18]} dxe4 {[%emt 0:00:19] E20: Nimzo-Indian: 4 g3 and 4 f3.} 7. fxe4 {[%emt 0:00:06]} c5 {[%emt 0:00:24]} 8. d5 {[%emt 0:00:36]} exd5 {[%emt 0:00:12] The position is equal.} 9. exd5 {[%emt 0:00:27]} O-O {[%emt 0:00:22]} 10. Nf3 {[%emt 0:00:13] [#]} h6 $146 {[%emt 0:02:57]} ({Predecessor:} 10... Bg4 11. Be2 Bd6 12. O-O Nbd7 13. Bg5 Bxf3 14. Bxf3 Qc7 15. h3 Rae8 16. Nb5 Qb8 17. Nxd6 Qxd6 {1-0 (58) Grigoryan,K (2651)-Peralta,F (2586) Barcelona 2020}) 11. Bd3 {[%emt 0:01:19]} Bg4 {[%emt 0:00:56]} 12. O-O {[%emt 0:01:08]} a6 {[%emt 0:02:19]} (12... Nbd7 $14) 13. h3 $16 {[%emt 0:00:28]} Bxf3 {[%emt 0:01:58]} 14. Qxf3 {[%emt 0:00:11][%cal Oc1h6] Black must now prevent Bxh6!} Nbd7 {[%emt 0:01:32]} 15. Bf4 {[%emt 0:01:53] Inhibits Ne5. Strongly threatening d6. White is more active.} Qb6 {[%emt 0:01:36] [#] Against d6} (15... Re8 $16 16. d6 Bf8) 16. Na4 $1 $18 {[%emt 0:03:26]} Qa5 {[%emt 0:00:29]} 17. d6 {[%emt 0:00:17]} Bd8 {[%emt 0:27:02]} (17... Bxd6 {is a better defense.} 18. Bxd6 Qxa4 19. Bxf8 (19. Qxb7 Rfc8 $16) 19... Rxf8 20. Qxb7 Ne5) 18. Bc2 {[%emt 0:01:03]} Rb8 {[%emt 0:07:47]} 19. Rfd1 {[%emt 0:05:15]} b5 {[%emt 0:01:58] [#]} 20. Bd2 $1 {[%emt 0:00:09] This bishop pair is nice.} b4 {[%emt 0:00:38]} 21. b3 {[%emt 0:02:24]} Re8 {[%emt 0:21:21]} 22. Re1 {[%emt 0:06:44]} Bb6 {[%emt 0:04:39]} 23. Re7 $2 {[%emt 0:09:18]} (23. Qg3 $18 {aiming for Bxh6.} Kh8 24. Bf5) 23... Bd8 $2 {[%emt 0:09:23][%mdl 8192] This costs Black the game.} (23... Rxe7 $16 {is tougher.} 24. dxe7 Bc7) 24. Rxe8+ {[%emt 0:06:29]} ({Less strong is} 24. axb4 cxb4 25. Rxe8+ Nxe8 $18) 24... Nxe8 {[%emt 0:00:02]} 25. Qf5 {[%emt 0:01:06] Against Bg5. Qh7+ would kill now.} Ndf6 {[%emt 0:06:12] Inhibits Qh7+.} 26. axb4 {[%emt 0:01:06]} cxb4 {[%emt 0:01:32]} 27. Qxa5 {[%emt 0:00:12]} Bxa5 {[%emt 0:00:03]} 28. c5 {[%emt 0:00:09]} Bd8 {[%emt 0:04:50]} 29. Rd1 {[%emt 0:03:05]} a5 {[%emt 0:02:10]} 30. Bf4 {[%emt 0:00:20]} g5 {[%emt 0:00:22]} 31. Bh2 {[%emt 0:00:17]} Kf8 {[%emt 0:00:51]} 32. Bd3 {[%emt 0:03:24]} Nd5 {[%emt 0:00:30]} 33. c6 {[%emt 0:00:22]} Nf4 {[%emt 0:00:23]} 34. Bxf4 {[%emt 0:03:18]} gxf4 {[%emt 0:00:01]} 35. Ba6 {[%emt 0:00:11]} f5 {[%emt 0:01:04]} 36. Bb7 {[%emt 0:00:27]} Kf7 {[%emt 0:00:31]} 37. Kf1 {[%emt 0:00:12]} Kf8 {[%emt 0:00:32]} 38. Nc5 {[%emt 0:00:13] Nd7+ is the strong threat.} Kf7 {[%emt 0:00:29]} 39. Na6 {[%emt 0:00:08]} Rxb7 {[%emt 0:00:32]} 40. cxb7 {[%emt 0:00:06]} Nf6 41. b8=Q {[%emt 0:30:11] Weighted Error Value: White=0.21 (precise) /Black=0.79} 1-0

[Event "Olomouc Chess Summer-IM 2022"]
[Site "Olomouc"]
[Date "2022.08.20"]
[Round "9.11"]
[White "Biolek, Richard Jr."]
[Black "Obsivac, Josef"]
[Result "1/2-1/2"]
[ECO "D10"]
[WhiteElo "2437"]
[BlackElo "2272"]
[Annotator "TA"]
[PlyCount "38"]
[EventDate "2022.08.10"]
[EventCountry "CZE"]
[SourceTitle "playchess.com"]
[Source "ChessBase"]
[SourceQuality "1"]
[TimeControl "40/5400+30:1800+30"]

{[%evp 18,20,7,0,5]} 1. d4 d5 2. c4 c6 3. cxd5 cxd5 4. Nc3 Nf6 5. Nf3 Nc6 6. Bf4 a6 7. e3 Bf5 8. Bd3 Bxd3 9. Qxd3 e6 10. O-O Bd6 $1 {[#] Not much happened in this game. 10...Bd6 is better than 10...Be7. D13: Slav Defence: Exchange variation without ...Bf5.} {Predecessor:} 11. Bxd6 $146 Qxd6 12. Rfc1 O-O 13. Na4 Nd7 14. Nc5 Nxc5 15. Rxc5 Rac8 16. Rac1 Ne7 17. Rxc8 Rxc8 18. Rxc8+ Nxc8 19. Qc3 Ne7 {½-½ (31) Li,C (2720)-Yu,Y (2750) Fufeng 2017} 1/2-1/2

[Event "Olomouc Chess Summer-IM 2022"]
[Site "Olomouc"]
[Date "2022.08.20"]
[Round "9.12"]
[White "Wiley, Tom E"]
[Black "Mannion, Stephen R"]
[Result "1/2-1/2"]
[ECO "D27"]
[WhiteElo "2169"]
[BlackElo "2232"]
[Annotator "TA"]
[PlyCount "47"]
[EventDate "2022.08.10"]
[EventCountry "CZE"]
[SourceTitle "playchess.com"]
[Source "ChessBase"]
[SourceQuality "1"]
[TimeControl "40/5400+30:1800+30"]

{[%evp 15,32,34,40,23,22,22,25,31,51,14,35,34,35,22,30,31,37,34,43]} 1. d4 {[%emt 0:00:02]} d5 {[%emt 0:07:01]} 2. c4 {[%emt 0:00:06]} dxc4 {[%emt 0:00:04]} 3. Nf3 {[%emt 0:00:15]} Nf6 {[%emt 0:00:16]} 4. e3 {[%emt 0:00:11]} e6 {[%emt 0:00:06]} 5. Bxc4 {[%emt 0:00:07]} c5 {[%emt 0:00:05]} 6. O-O {[%emt 0:00:11]} a6 {[%emt 0:00:15]} 7. dxc5 {[%emt 0:00:27]} Bxc5 {[%emt 0:00:14]} 8. Qxd8+ {[%emt 0:00:11]} Kxd8 {[%emt 0:00:05]} 9. Ne5 $1 {[%emt 0:00:14][%mdl 4] 9.Ne5 is the recent fashion. D27: Queen's Gambit Accepted: Classical main line: 7 e4!? and 7 a4.} Ke7 {[%emt 0:00:12]} 10. Be2 {[%emt 0:00:10]} Nbd7 {[%emt 0:02:21]} 11. Nc4 {[%emt 0:00:11] White has an edge.} b6 {[%emt 0:01:47]} 12. Nbd2 {[%emt 0:02:09]} a5 {[%emt 0:00:43]} 13. Nb3 {[%emt 0:01:15]} Ba6 {[%emt 0:00:11]} 14. Nxc5 {[%emt 0:01:19]} bxc5 {[%emt 0:00:13]} 15. f3 {[%emt 0:02:03]} Rhb8 {[%emt 0:04:48]} 16. Rf2 {[%emt 0:01:05]} a4 {[%emt 0:14:55] [#]  Weighted Error Value: White=0.05 (flawless) /Black=0.03 (flawless)} {Predecessor:} 17. e4 $146 Rb4 18. Na3 Ne5 19. Bf4 Nfd7 20. Bd2 Rb7 21. Bc3 f6 22. Rd1 Bxe2 23. Rxe2 Nc6 24. Nc4 {½-½ (24) Lenic,L (2646)-Caruana,F (2807) Tbilisi 2017} 1/2-1/2